Service area,Service sub division,TVBC Service,Expense type,Detailed expense type,TVBC account code,Date Paid,Transaction Reference, Nett Value ,Supplier Name
Central Services to the Public,Management & Support Services,Environmental,Transport Related Expenditure,Direct Transport Costs,Diesel,25/01/2018,232002,"-3,095.62",Wp Group Limited
Central Services to the Public,Management & Support Services,Environmental,Transport Related Expenditure,Direct Transport Costs,Diesel,25/01/2018,232001,"-2,944.42",Wp Group Limited
Central Services to the Public,Management & Support Services,IT,Supplies & Services,Services,Training Courses,25/01/2018,226849,"-1,080.00",Qa Limited
Planning & Development,Economic Development,Estates and Economic Development ,Supplies & Services,Grants & Subscriptions,Grants,11/01/2018,231996,500,Basingstoke Consortium Ltd
Planning & Development,Economic Development,Estates and Economic Development ,Supplies & Services,Grants & Subscriptions,Grants,11/01/2018,231997,500,Basingstoke Consortium Ltd
Planning & Development,Community Development,Community and Leisure ,Supplies & Services,Grants & Subscriptions,Grants,10/01/2018,232029,500,Romsey Cancer Support Centre
Central Services to the Public,Management & Support Services,Housing and Environmental Health ,Supplies & Services,"Equipment, Furniture & Materials",Purchase Equip + Materials,18/01/2018,231849,417,Office Update Ltd
Central Services to the Public,Management & Support Services,Estates and Economic Development ,Premises related Expenditure,Repairs Alterations & Maintenance of Buildings,Planned Maintenance - Non Est,18/01/2018,230850,418.5,Pattco
Planning & Development,Economic Development,Estates and Economic Development ,Supplies & Services,"Equipment, Furniture & Materials",Maintenance Equip + Materials,11/01/2018,231827,420,H2evidence
Cultural & Related,Open Spaces,Environmental,Supplies & Services,"Equipment, Furniture & Materials",Purchase Equip + Materials,25/01/2018,229160,420,Gb Sport & Leisure Uk Ltd
Central Services to the Public,Management & Support Services,Legal & Democratic,Supplies & Services,Services,Professional Advice,11/01/2018,231479,420,Dc Commercial Solicitors
"Highways, Roads & Transport",Parking Services,Plan Pol & Transport,Supplies & Services,"Equipment, Furniture & Materials",Purchase Equip + Materials,04/01/2018,230806,423,Imperial Civil Enforcement Solutions
Cultural & Related,Culture & Heritage,Community and Leisure ,Premises related Expenditure,Water Services,Water And Sewerage Charges,18/01/2018,232560,508.68,Sparsholt College Hampshire
Central Services to the Public,Management & Support Services,Estates and Economic Development ,Employees,Indirect Employee Expenses,Staff Professional Fees,11/01/2018,232108,519,Personal data - Data Protection Act 1998
External Trading Accounts,Business Parks,Estates and Economic Development ,Premises related Expenditure,Repairs Alterations & Maintenance of Buildings,Estates premises costs - AMP,18/01/2018,232387,436.44,Spear Electrical Limited
Cultural & Related,Open Spaces,Environmental,Supplies & Services,"Equipment, Furniture & Materials",Purchase Equip + Materials,25/01/2018,232938,437.75,Hillier Nurseries Limited
Central Services to the Public,Management & Support Services,IT,Supplies & Services,Communications & Computing,Software Maintenance,04/01/2018,230979,439,Dotted Eyes Ltd
Cultural & Related,Open Spaces,Community and Leisure ,Premises related Expenditure,Grounds Maintenance Costs,Non Contract Tree Works,18/01/2018,230725,442,Hillier Nurseries Limited
Environmental & Regulatory,Street Cleansing (not chargeable to Highways),Environmental,Transport Related Expenditure,Direct Transport Costs,Repair Materials,11/01/2018,231567,443.8,Johnston Sweepers Ltd
Environmental & Regulatory,Waste management,Environmental,Transport Related Expenditure,Direct Transport Costs,Repair Materials,04/01/2018,231437,444.68,Dennis Eagle Ltd
Housing Services,Homelessness,Housing and Environmental Health ,Supplies & Services,Communications & Computing,Computer Software,11/01/2018,232112,445.86,Civica Uk Ltd
Cultural & Related,Culture & Heritage,Estates and Economic Development ,Premises related Expenditure,Water Services,Water And Sewerage Charges,04/01/2018,231280,538.03,Business Stream
Planning & Development,Development Control,Planning & Building,Supplies & Services,Miscellaneous Expenses,Medical Fees,25/01/2018,232675,450,British Dyslexia Association
Environmental & Regulatory,Street Cleansing (not chargeable to Highways),Environmental,Transport Related Expenditure,Contract Hire and Operating Leases,Vehicles-Hired\Leased,10/01/2018,231543,450,Go Plant Ltd
Environmental & Regulatory,Street Cleansing (not chargeable to Highways),Environmental,Transport Related Expenditure,Contract Hire and Operating Leases,Vehicles-Hired\Leased,10/01/2018,231545,450,Go Plant Ltd
"Highways, Roads & Transport",Highways and roads - maintenance,Plan Pol & Transport,Supplies & Services,"Printing, Stationery & General Office Expenses",Photocopying Costs,11/01/2018,231336,460.51,Ricoh Uk Ltd
Central Services to the Public,Management & Support Services,IT,Supplies & Services,"Printing, Stationery & General Office Expenses",Photocopying Costs,25/01/2018,231838,463.15,Xerox (Uk) Ltd
Central Services to the Public,Management & Support Services,Environmental,Transport Related Expenditure,Direct Transport Costs,Red Derv,25/01/2018,232669,529.4,Wp Group Limited
Environmental & Regulatory,Waste management,Environmental,Employees,Indirect Employee Expenses,Agency Staff - Waged Posts,25/01/2018,232921,464.64,365 Supply Ltd
External Trading Accounts,Business Parks,Estates and Economic Development ,Premises related Expenditure,Grounds Maintenance Costs,Grounds Maintenance Contracts,18/01/2018,232678,473.19,Landmarks Sustainability Ltd
Environmental & Regulatory,Waste management,Environmental,Transport Related Expenditure,Direct Transport Costs,Repair Materials,04/01/2018,231339,476.12,Dennis Eagle Ltd
Environmental & Regulatory,Waste management,Environmental,Supplies & Services,Miscellaneous Expenses,Advertising,11/01/2018,231988,480,Newsquest Media Group Ltd
Cultural & Related,Open Spaces,Community and Leisure ,Supplies & Services,"Equipment, Furniture & Materials",Purchase Equip + Materials,18/01/2018,231526,480.41,Arco Ltd
Environmental & Regulatory,Waste management,Environmental,Transport Related Expenditure,Direct Transport Costs,Tyres,18/01/2018,231816,486.92,Ats Euromaster Limited
Cultural & Related,Culture & Heritage,Community and Leisure ,Supplies & Services,"Equipment, Furniture & Materials",Purchase Equip + Materials,04/01/2018,231306,490,Moon Roast Ltd
Central Services to the Public,Management & Support Services,Legal & Democratic,Employees,Indirect Employee Expenses,Agency Staff - Waged Posts,04/01/2018,231290,495,Venn Group
Central Services to the Public,Management & Support Services,Legal & Democratic,Employees,Indirect Employee Expenses,Agency Staff - Waged Posts,11/01/2018,231802,495,Venn Group
External Trading Accounts,Business Parks,Estates and Economic Development ,Premises related Expenditure,Repairs Alterations & Maintenance of Buildings,Estates premises costs - AMP,18/01/2018,232381,495,Gibson & Co Ceilings
Environmental & Regulatory,Waste management,Environmental,Transport Related Expenditure,Direct Transport Costs,Repair Materials,04/01/2018,230732,499.38,Dennis Eagle Ltd
Central Services to the Public,Management & Support Services,Estates and Economic Development ,Supplies & Services,"Equipment, Furniture & Materials",Purchase Materials (Job Cost),11/01/2018,232120,500,Yesss Electrical
Environmental & Regulatory,Regulatory Services,Housing and Environmental Health ,Supplies & Services,Services,Professional Advice,11/01/2018,231860,500,R Griffiths & Co
"Highways, Roads & Transport",Parking Services,Plan Pol & Transport,Supplies & Services,Services,Legal Fees,11/01/2018,232107,600,Hmcs
Central Services to the Public,Management & Support Services,Environmental,Transport Related Expenditure,Direct Transport Costs,Repair Materials,18/01/2018,232073,501.64,Dennis Eagle Ltd
Central Services to the Public,Management & Support Services,Estates and Economic Development ,Premises related Expenditure,Repairs Alterations & Maintenance of Buildings,Building Maint - Non Estates,25/01/2018,232951,503.55,Btu Installation & Maintenance Ltd
Central Services to the Public,Management & Support Services,Estates and Economic Development ,Third Party Payments,Other Establishments,Private Contractors,31/01/2018,233770,510,Smart Securtiy Systems Ltd
"Highways, Roads & Transport",Highways and roads - maintenance,Plan Pol & Transport,Supplies & Services,"Equipment, Furniture & Materials",Purchase Equip + Materials,25/01/2018,231014,512,Signway Supplies (Datchet Ltd)
Central Services to the Public,Management & Support Services,Environmental,Supplies & Services,"Clothes, Uniforms & Laundry",Clothing + Uniforms,18/01/2018,231785,515.85,Arco Ltd
Central Services to the Public,Elections,Legal & Democratic,Supplies & Services,"Printing, Stationery & General Office Expenses",Postage Costs,18/01/2018,232418,519.87,Financial Data Management Plc
Central Services to the Public,Management & Support Services,Plan Pol & Transport,Premises related Expenditure,Repairs Alterations & Maintenance of Buildings,General Repairs,18/01/2018,232570,527.19,Lockhams Construction Ltd
Cultural & Related,Recreation & Sport,Community and Leisure ,Supplies & Services,Grants and subscriptions,Capital Grants,18/01/2018,232598,636.36,Braishfield Village Hall
Central Services to the Public,Local Tax Collection,Revenues,Supplies & Services,Communications & Computing,Software Maintenance,11/01/2018,231767,212.2,Northgate Public Services Uk Ltd
Central Services to the Public,Local Tax Collection,Revenues,Supplies & Services,Communications & Computing,Software Maintenance,11/01/2018,231767,53.04,Northgate Public Services Uk Ltd
Housing Services,Housing Benefits ,Revenues,Supplies & Services,Communications & Computing,Software Maintenance,11/01/2018,231767,132.63,Northgate Public Services Uk Ltd
Central Services to the Public,Local Tax Collection,Revenues,Supplies & Services,Communications & Computing,Software Maintenance,11/01/2018,231767,132.63,Northgate Public Services Uk Ltd
Central Services to the Public,Management & Support Services,Legal & Democratic,Employees,Indirect Employee Expenses,Agency Staff - Waged Posts,25/01/2018,232929,540,Venn Group
External Trading Accounts,Business Parks,Estates and Economic Development ,Premises related Expenditure,Grounds Maintenance Costs,Grounds Maintenance Contracts,18/01/2018,232405,540,Gritit Ltd
Central Services to the Public,Management & Support Services,Environmental,Supplies & Services,"Clothes, Uniforms & Laundry",Clothing + Uniforms,04/01/2018,231255,547.3,Arco Ltd
Central Services to the Public,Management & Support Services,IT,Supplies & Services,"Equipment, Furniture & Materials",IT Supp and Serv AMP,04/01/2018,230991,559.25,Storm Technologies
Environmental & Regulatory,Regulatory Services,Housing and Environmental Health ,Supplies & Services,"Equipment, Furniture & Materials",Purchase Equip + Materials,11/01/2018,231444,560.82,Ricoh Uk Ltd
Central Services to the Public,Management & Support Services,Estates and Economic Development ,Supplies & Services,"Equipment, Furniture & Materials",Purchase Materials (Job Cost),11/01/2018,232121,564,Yesss Electrical
Central Services to the Public,Management & Support Services,Estates and Economic Development ,Premises related Expenditure,Repairs Alterations & Maintenance of Buildings,Building Maint - Non Estates,25/01/2018,232950,564.18,Btu Installation & Maintenance Ltd
Planning & Development,Building Control,Planning & Building,Supplies & Services,Services,Professional Fees,11/01/2018,231796,568.89,Barron & Partners
Central Services to the Public,Management & Support Services,Estates and Economic Development ,Premises related Expenditure,Repairs Alterations & Maintenance of Buildings,Planned Maintenance - Non Est,25/01/2018,232967,575.2,Btu Installation & Maintenance Ltd
Central Services to the Public,Local Tax Collection,Revenues,Supplies & Services,"Printing, Stationery & General Office Expenses",External Printing,11/01/2018,231851,586,Hound Envelopes Limited
Central Services to the Public,Management & Support Services,Environmental,Supplies & Services,"Clothes, Uniforms & Laundry",Clothing + Uniforms,18/01/2018,232374,601.7,Arco Ltd
Cultural & Related,Culture & Heritage,Community and Leisure ,Supplies & Services,Catering,Non-Contract Catering,25/01/2018,233036,612.59,Carlsberg Uk Ltd
Cultural & Related,Recreation & Sport,Community and Leisure ,Supplies & Services,Services,Legal Fees,11/01/2018,230246,615.5,Blake Morgan Llp
Central Services to the Public,Management & Support Services,IT,Supplies & Services,Communications & Computing,Land Line Telephone Charges,18/01/2018,232008,617,Virgin Media Payments Ltd
Planning & Development,Economic Development,Estates and Economic Development ,Supplies & Services,Grants & Subscriptions,Grants,10/01/2018,232030,750,Personal data - Data Protection Act 1998
Planning & Development,Community Development,Community and Leisure ,Supplies & Services,Grants & Subscriptions,Grants,24/01/2018,233195,750,King'S Somborne Village Management Committee
Central Services to the Public,Management & Support Services,Plan Pol & Transport,Supplies & Services,Grants & Subscriptions,Grants,11/01/2018,232134,750,Ampfield Parish Council
Central Services to the Public,Elections,Legal & Democratic,Supplies & Services,"Printing, Stationery & General Office Expenses",Postage Costs,04/01/2018,231262,625.7,Financial Data Management Plc
Cultural & Related,Open Spaces,Environmental,Supplies & Services,Miscellaneous Expenses,Waste Collection,18/01/2018,232429,631,Raymond Brown Minerals & Recycling Ltd
Planning & Development,Development Control,Planning & Building,Employees,Indirect Employee Expenses,Temporary Staff,17/01/2018,232439,761.6,T P Marsh
Environmental & Regulatory,Waste management,Environmental,Employees,Indirect Employee Expenses,Agency Staff - Waged Posts,25/01/2018,232922,644.16,365 Supply Ltd
Cultural & Related,Culture & Heritage,Community and Leisure ,Supplies & Services,Miscellaneous Expenses,Booking Of Acts,18/01/2018,230996,650,Tutti Frutti Productions
Environmental & Regulatory,Street Cleansing (not chargeable to Highways),Environmental,Supplies & Services,"Equipment, Furniture & Materials",Purchase Equip + Materials,18/01/2018,231786,662.11,Arco Ltd
Cultural & Related,Open Spaces,Environmental,Supplies & Services,Miscellaneous Expenses,Waste Collection,11/01/2018,230775,662.92,Raymond Brown Minerals & Recycling Ltd
Cultural & Related,Open Spaces,Environmental,Supplies & Services,"Equipment, Furniture & Materials",Purchase Equip + Materials,11/01/2018,231758,665,Andover Turf Company
Central Services to the Public,Elections,Legal & Democratic,Supplies & Services,"Printing, Stationery & General Office Expenses",Postage Costs,11/01/2018,231836,665.26,Financial Data Management Plc
Cultural & Related,Culture & Heritage,Community and Leisure ,Supplies & Services,Services,Tutors,24/01/2018,233043,800,Personal data - Data Protection Act 1998
Central Services to the Public,Management & Support Services,Legal & Democratic,Employees,Indirect Employee Expenses,Agency Staff - Waged Posts,25/01/2018,232931,675,Venn Group
Cultural & Related,Open Spaces,Community and Leisure ,Supplies & Services,"Equipment, Furniture & Materials",Purchase Equip + Materials,11/01/2018,225948,676,Streetmaster (South Wales) Ltd
Central Services to the Public,Local Tax Collection,Revenues,Supplies & Services,Communications & Computing,Software Maintenance,11/01/2018,231297,688.07,Bottomline Technologies Ltd
Central Services to the Public,Management & Support Services,Finance,Supplies & Services,Communications & Computing,Software Maintenance,11/01/2018,231297,688.07,Bottomline Technologies Ltd
Environmental & Regulatory,Waste management,Environmental,Transport Related Expenditure,Direct Transport Costs,Repair Materials,25/01/2018,232604,690.23,Dennis Eagle Ltd
External Trading Accounts,Business Parks,Estates and Economic Development ,Supplies & Services,Miscellaneous Expenses,Waste Collection,11/01/2018,232032,696.6,Basingstoke Skip Hire & Sthrn Waste Mgt Ltd
Central Services to the Public,Management & Support Services,Estates and Economic Development ,Supplies & Services,Communications & Computing,Software Maintenance,11/01/2018,231842,700,Rics
Cultural & Related,Recreation & Sport,Estates and Economic Development ,Premises related Expenditure,Water Services,Water And Sewerage Charges,04/01/2018,231016,851.74,Business Stream
Environmental & Regulatory,Waste management,Environmental,Transport Related Expenditure,Direct Transport Costs,Repair Materials,25/01/2018,232558,711.36,Terberg Matec Uk Limited
Environmental & Regulatory,Regulatory Services,Housing and Environmental Health ,Supplies & Services,Services,Legal Fees,10/01/2018,231350,875,12College Place
Central Services to the Public,Management & Support Services,Finance,Supplies & Services,"Printing, Stationery & General Office Expenses",Postage Costs,04/01/2018,231300,736.51,Whistl Uk Ltd
Central Services to the Public,Management & Support Services,IT,Supplies & Services,"Equipment, Furniture & Materials",Maintenance Equip + Materials,11/01/2018,231480,740.62,Quadrant Security Group Ltd
Central Services to the Public,Management & Support Services,IT,Supplies & Services,"Equipment, Furniture & Materials",Maintenance Equip + Materials,25/01/2018,232557,740.62,Quadrant Security Group Ltd
Central Services to the Public,Management & Support Services,Legal & Democratic,Employees,Indirect Employee Expenses,Agency Staff - Waged Posts,25/01/2018,232930,742.5,Venn Group
Central Services to the Public,Management & Support Services,Estates and Economic Development ,Premises related Expenditure,Repairs Alterations & Maintenance of Buildings,Estates premises costs - AMP,18/01/2018,230978,750,Abp Associates Ltd
Central Services to the Public,Management & Support Services,Estates and Economic Development ,Third Party Payments,Other Establishments,Private Contractors,04/01/2018,231316,750,Protec Roofing Southern Ltd
Central Services,Corporate & Democratic Core,Corporate & Democratic,Supplies & Services,Services,Professional Advice,04/01/2018,231333,750,Dc Commercial Solicitors
Planning & Development,Planning Policy,Plan Pol & Transport,Supplies & Services,Miscellaneous Expenses,S106 Funded Projects,25/01/2018,231806,750,Hampshire County Council
Cultural & Related,Open Spaces,Environmental,Supplies & Services,Services,Training Courses,25/01/2018,232618,751.75,By-Pass Driver Training
Housing Services,Housing Benefits ,Revenues,Supplies & Services,Communications & Computing,Software Maintenance,25/01/2018,231853,376.39,Northgate Public Services Uk Ltd
Central Services to the Public,Local Tax Collection,Revenues,Supplies & Services,Communications & Computing,Software Maintenance,25/01/2018,231853,376.39,Northgate Public Services Uk Ltd
Central Services to the Public,Management & Support Services,Legal & Democratic,Supplies & Services,"Printing, Stationery & General Office Expenses",Internal Printing ,25/01/2018,232701,761.63,Ricoh Uk Ltd
Central Services to the Public,Management & Support Services,Environmental,Transport Related Expenditure,Direct Transport Costs,Repair Materials,04/01/2018,231347,775.09,Terberg Matec Uk Limited
Cultural & Related,Open Spaces,Environmental,Transport Related Expenditure,Direct Transport Costs,Repair Materials,25/01/2018,232611,779.87,Vale Engineering (York) Ltd
Environmental & Regulatory,Street Cleansing (not chargeable to Highways),Environmental,Supplies & Services,Miscellaneous Expenses,Promotions / Special Events,18/01/2018,232400,791.34,Frenzy Creative Ltd
Central Services to the Public,Management & Support Services,Legal & Democratic,Supplies & Services,Communications & Computing,Computer Software,25/01/2018,232933,797.7,Iken Business Ltd
Planning & Development,Development Control,Planning & Building,Supplies & Services,Services,Project Consultancy - Policy,11/01/2018,231846,958.1,Hearn Urban Design
Environmental & Regulatory,Waste management,Environmental,Employees,Indirect Employee Expenses,Agency Staff - Waged Posts,25/01/2018,232923,798.83,365 Supply Ltd
Cultural & Related,Open Spaces,Community and Leisure ,Premises related Expenditure,Grounds Maintenance Costs,Gm - Additional Works,11/01/2018,227675,810,T H White Ltd
Cultural & Related,Open Spaces,Community and Leisure ,Premises related Expenditure,Grounds Maintenance Costs,Gm - Additional Works,11/01/2018,230234,810,T H White Ltd
"Highways, Roads & Transport",Highways and roads - maintenance,Plan Pol & Transport,Supplies & Services,"Equipment, Furniture & Materials",Purchase Equip + Materials,25/01/2018,232989,812.5,Westcotec Ltd
Planning & Development,Community Development,Community and Leisure ,Supplies & Services,Grants & Subscriptions,Grants,31/01/2018,233778,976,Andover Swimming & Water Polo Club
Environmental & Regulatory,Waste management,Environmental,Transport Related Expenditure,Direct Transport Costs,Repair Materials,04/01/2018,230792,816.76,Terberg Matec Uk Limited
Central Services to the Public,Management & Support Services,Plan Pol & Transport,Supplies & Services,"Equipment, Furniture & Materials",Purchase Equip + Materials,04/01/2018,230755,820.22,Signway Supplies (Datchet Ltd)
Central Services to the Public,Management & Support Services,Finance,Supplies & Services,"Printing, Stationery & General Office Expenses",Postage Costs,11/01/2018,231471,829.24,Whistl Uk Ltd
"Highways, Roads & Transport",Public Transport,Plan Pol & Transport,Third Party Payments,Transport Operators in Respect of Concessionary Fares,Voluntary Orgs Reimbursement,04/01/2018,231538,998.5,Romsey Good Neighbours
Planning & Development,Economic Development,Estates and Economic Development ,Supplies & Services,Grants & Subscriptions,Grants,11/01/2018,232086,"1,000.00",G T Marketing & Pr
Planning & Development,Community Development,Community and Leisure ,Supplies & Services,Grants & Subscriptions,Grants,03/01/2018,231491,"1,000.00",Chilworth Parochial Church Council
Cultural & Related,Open Spaces,Community and Leisure ,Premises related Expenditure,Repairs Alterations & Maintenance of Buildings,Estates premises costs - AMP,18/01/2018,231789,835,Hrg Tree Services Ltd
"Highways, Roads & Transport",Parking Services,Plan Pol & Transport,Premises related Expenditure,Repairs Alterations & Maintenance of Buildings,Car Parks - Signs + Lines,04/01/2018,230754,836.65,Signway Supplies (Datchet Ltd)
Central Services to the Public,Management & Support Services,Estates and Economic Development ,Supplies & Services,Miscellaneous Expenses,Promotions / Special Events,04/01/2018,231004,842.41,Newsquest Media Group Ltd
Cultural & Related,Culture & Heritage,Community and Leisure ,Supplies & Services,Catering,Non-Contract Catering,11/01/2018,231769,843.79,Carlsberg Uk Ltd
Central Services to the Public,Management & Support Services,Legal & Democratic,Employees,Indirect Employee Expenses,Agency Staff - Waged Posts,11/01/2018,231803,855,Venn Group
Central Services to the Public,Management & Support Services,Finance,Supplies & Services,"Printing, Stationery & General Office Expenses",Postage Costs,18/01/2018,232079,859.2,Whistl Uk Ltd
"Highways, Roads & Transport",Public Transport,Plan Pol & Transport,Third Party Payments,Transport Operators in Respect of Concessionary Fares,Voluntary Orgs Reimbursement,11/01/2018,232106,"1,034.00",Romsey Good Neighbours
Environmental & Regulatory,Regulatory Services,Housing and Environmental Health ,Supplies & Services,Miscellaneous Expenses,Kennel fees,18/01/2018,232111,870,Anton Vets Ltd
Planning & Development,Economic Development,Estates and Economic Development ,Supplies & Services,Services,Training Courses,24/01/2018,232980,"1,047.50",Coolled Limited
Planning & Development,Economic Development,Estates and Economic Development ,Supplies & Services,Services,Training Courses,25/01/2018,233047,"1,047.50",Oaktree Business Management
Central Services to the Public,Management & Support Services,IT,Supplies & Services,"Equipment, Furniture & Materials",IT Supp and Serv AMP,04/01/2018,230528,893.36,E-Buyer (Uk) Limited
Central Services to the Public,Management & Support Services,Environmental,Transport Related Expenditure,Direct Transport Costs,Repair Materials,25/01/2018,232433,915.96,Terberg Matec Uk Limited
Central Services to the Public,Management & Support Services,IT,Supplies & Services,Communications & Computing,Land Line Telephone Charges,25/01/2018,232397,921.75,Virgin Media Payments Ltd
External Trading Accounts,Business Parks,Estates and Economic Development ,Supplies & Services,Miscellaneous Expenses,Waste Collection,11/01/2018,232031,922.95,Basingstoke Skip Hire & Sthrn Waste Mgt Ltd
Central Services to the Public,Local Tax Collection,Revenues,Supplies & Services,Services,Professional Fees,11/01/2018,231991,75,Ross & Roberts
Environmental & Regulatory,Waste management,Environmental,Supplies & Services,"Equipment, Furniture & Materials",Purchase Equip + Materials,04/01/2018,231497,928,Roland Security Llp
Cultural & Related,Culture & Heritage,Community and Leisure ,Supplies & Services,Catering,Caf� Catering supplies,04/01/2018,231348,928.46,Carlsberg Uk Ltd
Central Services,Corporate & Democratic Core,Corporate & Democratic,Supplies & Services,Communications & Computing,Land Line Telephone Charges,25/01/2018,232415,936.77,Invicta Lifeline Ltd
Central Services to the Public,Management & Support Services,IT,Supplies & Services,Communications & Computing,Land Line Telephone Charges,25/01/2018,232396,938.23,Virgin Media Payments Ltd
Central Services to the Public,Elections,Legal & Democratic,Supplies & Services,Communications & Computing,Computer Software,18/01/2018,232417,940.54,Electoral Reform Services
Cultural & Related,Recreation & Sport,Community and Leisure ,Supplies & Services,Services,Professional Fees,04/01/2018,231484,950,Rhb Partnership Llp
Central Services to the Public,Management & Support Services,IT,Supplies & Services,Communications & Computing,Communication Links,11/01/2018,231304,958,Vodafone Ltd
Environmental & Regulatory,Waste management,Environmental,Employees,Indirect Employee Expenses,Agency Staff - Waged Posts,25/01/2018,232924,962.66,365 Supply Ltd
Environmental & Regulatory,Waste management,Environmental,Employees,Indirect Employee Expenses,Agency Staff - Waged Posts,25/01/2018,232920,963.6,365 Supply Ltd
Cultural & Related,Open Spaces,Community and Leisure ,Premises related Expenditure,Repairs Alterations & Maintenance of Buildings,Estates premises costs - AMP,18/01/2018,231791,980,Hrg Tree Services Ltd
Central Services to the Public,Management & Support Services,Environmental,Transport Related Expenditure,Direct Transport Costs,Diesel,11/01/2018,231766,983.8,Wp Group Limited
Planning & Development,Development Control,Planning & Building,Employees,Indirect Employee Expenses,Temporary Staff,18/01/2018,232436,992,Oyster Partnership
Cultural & Related,Open Spaces,Environmental,Supplies & Services,"Equipment, Furniture & Materials",Purchase Equip + Materials,11/01/2018,229313,994.38,Groundsman Tools & Supplies Llp
Central Services to the Public,Management & Support Services,IT,Supplies & Services,Grants & Subscriptions,Subscriptions,04/01/2018,230805,995,Socitm Ltd
"Highways, Roads & Transport",Highways and roads - maintenance,Plan Pol & Transport,Premises related Expenditure,Repairs Alterations & Maintenance of Buildings,Highways Repairs,25/01/2018,232979,995,Purbeck Civil Engineering Limited
Planning & Development,Building Control,Planning & Building,Supplies & Services,Communications & Computing,Software Maintenance,04/01/2018,230745,"1,000.00",Idox Software Ltd
"Highways, Roads & Transport",Highways and roads - maintenance,Plan Pol & Transport,Premises related Expenditure,Repairs Alterations & Maintenance of Buildings,Highways Repairs,25/01/2018,232909,"1,000.00",Clutterbuck
Central Services to the Public,Management & Support Services,Legal & Democratic,Employees,Indirect Employee Expenses,Agency Staff - Waged Posts,04/01/2018,231289,"1,035.00",Venn Group
Central Services to the Public,Local Tax Collection,Revenues,Supplies & Services,Communications & Computing,Software Maintenance,11/01/2018,231854,"1,053.18",Northgate Public Services Uk Ltd
Central Services to the Public,Management & Support Services,IT,Supplies & Services,Services,Training Courses,25/01/2018,232971,"1,080.00",Qa Limited
Cultural & Related,Open Spaces,Environmental,Transport Related Expenditure,Direct Transport Costs,Repair Materials,25/01/2018,232419,"1,083.56",King Feeders Uk
Central Services to the Public,Local Tax Collection,Revenues,Supplies & Services,Communications & Computing,Software Maintenance,11/01/2018,230791,"1,100.00",Northgate Public Services Uk Ltd
Central Services to the Public,Local Tax Collection,Revenues,Supplies & Services,Communications & Computing,Software Maintenance,11/01/2018,230791,"1,100.00",Northgate Public Services Uk Ltd
Central Services to the Public,Management & Support Services,Plan Pol & Transport,Premises related Expenditure,Repairs Alterations & Maintenance of Buildings,General Repairs,18/01/2018,232568,"1,101.69",Lockhams Construction Ltd
Environmental & Regulatory,Regulatory Services,Estates and Economic Development ,Premises related Expenditure,Water Services,Water And Sewerage Charges,04/01/2018,231278,"1,335.74",Business Stream
Environmental & Regulatory,Street Cleansing (not chargeable to Highways),Environmental,Supplies & Services,Services,Training Courses,25/01/2018,232618,"1,127.62",By-Pass Driver Training
Environmental & Regulatory,Waste management,Environmental,Supplies & Services,Services,Training Courses,25/01/2018,232618,"1,127.62",By-Pass Driver Training
Planning & Development,Planning Policy,Plan Pol & Transport,Supplies & Services,Miscellaneous Expenses,Advertising,04/01/2018,230202,"1,135.90",Hampshire Media Limited
Environmental & Regulatory,Regulatory Services,Housing and Environmental Health ,Supplies & Services,Grants and subscriptions,Capital Grants,18/01/2018,232608,"1,399.26",Pure Construction (Southern) Ltd
Central Services to the Public,Management & Support Services,Environmental,Supplies & Services,"Equipment, Furniture & Materials",Maintenance Equip + Materials,25/01/2018,232977,"1,176.15",Totalkare H.D.W.S Ltd
Central Services to the Public,Management & Support Services,Plan Pol & Transport,Premises related Expenditure,Repairs Alterations & Maintenance of Buildings,General Repairs,18/01/2018,232569,"1,196.34",Lockhams Construction Ltd
Environmental & Regulatory,Regulatory Services,Housing and Environmental Health ,Employees,Indirect Employee Expenses,Temporary Staff,04/01/2018,231286,"1,200.00",Buckingham Futures Limited
Central Services to the Public,Management & Support Services,Finance,Supplies & Services,"Printing, Stationery & General Office Expenses",Written Media,04/01/2018,231487,"1,480.00",Cipfa Business Limited
Environmental & Regulatory,Regulatory Services,Legal & Democratic,Supplies & Services,Services,Training Courses,18/01/2018,232365,"1,241.18",J Button & Co
Environmental & Regulatory,Regulatory Services,Housing and Environmental Health ,Supplies & Services,Services,Professional Advice,11/01/2018,231479,"1,260.00",Dc Commercial Solicitors
Cultural & Related,Recreation & Sport,Estates and Economic Development ,Premises related Expenditure,Energy Costs,Electricity,18/01/2018,232085,"1,267.17",British Gas Business
Central Services to the Public,Management & Support Services,Finance,Supplies & Services,"Printing, Stationery & General Office Expenses",Postage Costs,25/01/2018,232907,"1,290.96",Whistl Uk Ltd
Planning & Development,Planning Policy,Plan Pol & Transport,Supplies & Services,Grants & Subscriptions,Grants,25/01/2018,230397,"1,549.15",Hampshire County Council
Planning & Development,Planning Policy,Plan Pol & Transport,Supplies & Services,Grants & Subscriptions,Grants,25/01/2018,231807,"1,549.15",Hampshire County Council
Central Services to the Public,Local Tax Collection,Revenues,Supplies & Services,Miscellaneous Expenses,All Pay Fees,11/01/2018,231829,"1,296.56",Allpay Limited
Central Services to the Public,Management & Support Services,Environmental,Supplies & Services,"Equipment, Furniture & Materials",Maintenance Equip + Materials,25/01/2018,232456,"1,315.52",Triscan Systems Ltd
Planning & Development,Development Control,Planning & Building,Employees,Indirect Employee Expenses,Temporary Staff,04/01/2018,231291,"1,338.56",Oyster Partnership
Planning & Development,Building Control,Planning & Building,Supplies & Services,Grants & Subscriptions,Grants,25/01/2018,232926,"1,411.32",Exova (Uk) Ltd T/A Exova Bm Trada
Cultural & Related,Open Spaces,Community and Leisure ,Premises related Expenditure,Grounds Maintenance Costs,Gm - Additional Works,11/01/2018,231751,"1,455.00",Personal data - Data Protection Act 1998
Central Services to the Public,Management & Support Services,Estates and Economic Development ,Supplies & Services,"Equipment, Furniture & Materials",Purchase Materials (Job Cost),18/01/2018,232703,"1,469.34",Edmundson Electrical Ltd
Central Services to the Public,Local Tax Collection,Revenues,Supplies & Services,Communications & Computing,Software Maintenance,25/01/2018,231855,598.02,Northgate Public Services Uk Ltd
Central Services to the Public,Local Tax Collection,Revenues,Supplies & Services,Communications & Computing,Software Maintenance,25/01/2018,231855,149.5,Northgate Public Services Uk Ltd
Housing Services,Housing Benefits ,Revenues,Supplies & Services,Communications & Computing,Software Maintenance,25/01/2018,231855,373.76,Northgate Public Services Uk Ltd
Central Services to the Public,Local Tax Collection,Revenues,Supplies & Services,Communications & Computing,Software Maintenance,25/01/2018,231855,373.76,Northgate Public Services Uk Ltd
Central Services to the Public,Management & Support Services,HR Services,Supplies & Services,Services,External Training Consultants,18/01/2018,232075,"1,500.00",People Intelligence
Cultural & Related,Culture & Heritage,Community and Leisure ,Supplies & Services,Miscellaneous Expenses,Booking Of Acts,04/01/2018,230748,"1,500.00",Singalonga Productions Limited
"Highways, Roads & Transport",Parking Services,Plan Pol & Transport,Premises related Expenditure,Repairs Alterations & Maintenance of Buildings,Car Park General Repairs,04/01/2018,230800,"1,500.00",Bulpitt Print Ltd
Planning & Development,Planning Policy,Plan Pol & Transport,Supplies & Services,Services,Project Consultancy - Policy,11/01/2018,232125,"1,852.51",I-Transport Llp
Central Services to the Public,Management & Support Services,Environmental,Supplies & Services,Communications & Computing,Software Maintenance,11/01/2018,231539,"1,559.47",Triscan Systems Ltd
External Trading Accounts,Business Parks,Estates and Economic Development ,Premises related Expenditure,Repairs Alterations & Maintenance of Buildings,Estates premises costs - AMP,04/01/2018,231317,"1,566.97",Options Flooring Ltd
Central Services to the Public,Management & Support Services,IT,Supplies & Services,"Printing, Stationery & General Office Expenses",Photocopying Costs,25/01/2018,232427,"1,612.47",Xerox (Uk) Ltd
Central Services to the Public,Management & Support Services,Estates and Economic Development ,Third Party Payments,Other Establishments,Contract Catering,11/01/2018,231839,"1,651.07",Edwards And Ward Ltd
Environmental & Regulatory,Regulatory Services,Housing and Environmental Health ,Supplies & Services,Miscellaneous Expenses,Kennel fees,25/01/2018,232694,"1,707.48",Newbury Lodge Kennels
Cultural & Related,Recreation & Sport,Community and Leisure ,Supplies & Services,Grants and subscriptions,Capital Grants,17/01/2018,232573,"2,062.31",Romsey Men'S Shed
"Highways, Roads & Transport",Public Transport,Plan Pol & Transport,Third Party Payments,Transport Operators in Respect of Concessionary Fares,Voluntary Orgs Reimbursement,25/01/2018,233034,"2,065.50",Andover Neighbourcare
Environmental & Regulatory,Street Cleansing (not chargeable to Highways),Environmental,Transport Related Expenditure,Direct Transport Costs,Repair Materials,18/01/2018,230744,"1,733.84",Adams Morey Ltd
Environmental & Regulatory,Regulatory Services,Housing and Environmental Health ,Supplies & Services,Grants and subscriptions,Capital Grants,25/01/2018,233297,"2,100.00",Liftech Systems (Se) Ltd
Cultural & Related,Open Spaces,Community and Leisure ,Premises related Expenditure,Grounds Maintenance Costs,Non Contract Tree Works,18/01/2018,231790,"1,849.96",Hrg Tree Services Ltd
External Trading Accounts,Business Parks,Estates and Economic Development ,Premises related Expenditure,Grounds Maintenance Costs,Gm - Additional Works,18/01/2018,231790,"1,849.97",Hrg Tree Services Ltd
Cultural & Related,Culture & Heritage,Community and Leisure ,Supplies & Services,Miscellaneous Expenses,Booking Of Acts,04/01/2018,231264,"1,853.34",Sweeney Entertainments
Cultural & Related,Recreation & Sport,Community and Leisure ,Premises related Expenditure,Repairs Alterations & Maintenance of Buildings,Estates premises costs - AMP,25/01/2018,233216,"1,910.00",Purbeck Civil Engineering Limited
Central Services to the Public,Management & Support Services,Estates and Economic Development ,Supplies & Services,Communications & Computing,Software Maintenance,18/01/2018,232070,"1,950.00",Integrated Solutions Ltd
External Trading Accounts,Business Parks,Estates and Economic Development ,Premises related Expenditure,Grounds Maintenance Costs,Grounds Maintenance Contracts,04/01/2018,231528,"1,989.96",Gritit Ltd
External Trading Accounts,Business Parks,Estates and Economic Development ,Premises related Expenditure,Grounds Maintenance Costs,Grounds Maintenance Contracts,18/01/2018,231531,"1,989.96",Gritit Ltd
Central Services,Corporate & Democratic Core,Corporate & Democratic,Supplies & Services,Services,Training Courses,11/01/2018,232000,"1,995.00",Lgiu
Cultural & Related,Culture & Heritage,Community and Leisure ,Premises related Expenditure,Energy Costs,Electricity,18/01/2018,232560,"2,006.91",Sparsholt College Hampshire
Cultural & Related,Recreation & Sport,Estates and Economic Development ,Premises related Expenditure,Energy Costs,Gas,18/01/2018,232591,"2,357.58",Total Gas & Power Ltd
Central Services to the Public,Management & Support Services,Environmental,Transport Related Expenditure,Direct Transport Costs,Diesel,11/01/2018,231765,"2,077.79",Wp Group Limited
Environmental & Regulatory,"Cemetery, Cremation and Mortuary Services",Community and Leisure ,Premises related Expenditure,Repairs Alterations & Maintenance of Buildings,Estates premises costs - AMP,04/01/2018,231313,"2,100.00",Purbeck Civil Engineering Limited
Central Services to the Public,Management & Support Services,HR Services,Supplies & Services,Services,Training Courses,04/01/2018,230729,"2,100.30",Adaptis Ltd
Cultural & Related,Culture & Heritage,Community and Leisure ,Supplies & Services,Miscellaneous Expenses,Booking Of Acts,11/01/2018,232010,"2,622.34",Desperado
Environmental & Regulatory,Waste management,Environmental,Transport Related Expenditure,Direct Transport Costs,Repair Materials,25/01/2018,232368,"2,217.92",Dennis Eagle Ltd
Environmental & Regulatory,Waste management,Environmental,Supplies & Services,Miscellaneous Expenses,Recycling Campaign,18/01/2018,232409,"2,270.02",Longcombe Labels Ltd
Central Services to the Public,Management & Support Services,IT,Supplies & Services,"Equipment, Furniture & Materials",IT Supp and Serv AMP,18/01/2018,232567,"2,289.50",Storm Technologies
Central Services to the Public,Management & Support Services,Environmental,Transport Related Expenditure,Direct Transport Costs,Diesel,25/01/2018,232012,"2,376.48",Wp Group Limited
Central Services to the Public,Management & Support Services,Legal & Democratic,Supplies & Services,Services,Legal Fees,25/01/2018,232664,"2,400.00",Cornerstone Barristers
Central Services to the Public,Management & Support Services,Environmental,Transport Related Expenditure,Direct Transport Costs,Diesel,04/01/2018,231265,"2,420.75",Wp Group Limited
Central Services to the Public,Management & Support Services,Estates and Economic Development ,Third Party Payments,Other Establishments,Contract Catering,25/01/2018,232953,"2,532.05",Edwards And Ward Ltd
Cultural & Related,Recreation & Sport,Community and Leisure ,Premises related Expenditure,Repairs Alterations & Maintenance of Buildings,Estates premises costs - AMP,18/01/2018,231788,"2,649.00",Hrg Tree Services Ltd
Central Services to the Public,Management & Support Services,HR Services,Supplies & Services,Services,Training Courses,25/01/2018,232952,"2,668.80",Adaptis Ltd
Planning & Development,Planning Policy,Plan Pol & Transport,Supplies & Services,Services,Project Consultancy - Policy,18/01/2018,232571,"3,267.50",I-Transport Llp
Central Services to the Public,Local Land Charges,Legal & Democratic,Supplies & Services,Miscellaneous Expenses,Land Charges Fees,11/01/2018,231862,"2,805.75",Hampshire County Council
Central Services to the Public,Elections,Legal & Democratic,Supplies & Services,"Printing, Stationery & General Office Expenses",External Printing,11/01/2018,231835,"2,813.16",Financial Data Management Plc
Cultural & Related,Culture & Heritage,Community and Leisure ,Supplies & Services,Miscellaneous Expenses,Booking Of Acts,18/01/2018,232562,"2,841.25",Mark Lundquist Mlm Concerts Ltd
Planning & Development,Development Control,Planning & Building,Employees,Indirect Employee Expenses,Temporary Staff,11/01/2018,231843,"3,420.00",Hampshire Planning Limited
Cultural & Related,Open Spaces,Community and Leisure ,Premises related Expenditure,Grounds Maintenance Costs,Gm - Additional Works,04/01/2018,231470,"2,907.00",Personal data - Data Protection Act 1998
Central Services to the Public,Management & Support Services,Environmental,Transport Related Expenditure,Direct Transport Costs,Diesel,25/01/2018,232018,"2,924.92",Wp Group Limited
Central Services to the Public,Management & Support Services,Environmental,Transport Related Expenditure,Direct Transport Costs,Diesel,11/01/2018,231421,"2,944.42",Wp Group Limited
Environmental & Regulatory,Regulatory Services,Housing and Environmental Health ,Supplies & Services,Grants and subscriptions,Capital Grants,18/01/2018,232612,"3,560.55",Acer Renovations Ltd
Cultural & Related,Culture & Heritage,Community and Leisure ,Supplies & Services,Miscellaneous Expenses,Booking Of Acts,11/01/2018,231560,"2,972.66",Honalee Media
Central Services to the Public,Management & Support Services,Environmental,Transport Related Expenditure,Direct Transport Costs,Diesel,25/01/2018,232671,"2,973.00",Wp Group Limited
Central Services to the Public,Management & Support Services,Environmental,Transport Related Expenditure,Direct Transport Costs,Diesel,25/01/2018,233041,"2,980.80",Wp Group Limited
Cultural & Related,Culture & Heritage,Community and Leisure ,Supplies & Services,Miscellaneous Expenses,Booking Of Acts,11/01/2018,231563,"3,020.00",Lms Worldwide Ltd
Environmental & Regulatory,Regulatory Services,Housing and Environmental Health ,Supplies & Services,Grants and subscriptions,Capital Grants,18/01/2018,232708,"3,650.74",Bartram Building Maintenance Services
Central Services to the Public,Management & Support Services,Environmental,Transport Related Expenditure,Direct Transport Costs,Diesel,25/01/2018,232019,"3,075.12",Wp Group Limited
Central Services to the Public,Management & Support Services,Environmental,Transport Related Expenditure,Direct Transport Costs,Diesel,11/01/2018,231422,"3,095.62",Wp Group Limited
"Highways, Roads & Transport",Highways and roads - maintenance,Plan Pol & Transport,Supplies & Services,"Equipment, Furniture & Materials",Purchase Equip + Materials,25/01/2018,231463,"3,154.70",Coupe Line
Central Services to the Public,Management & Support Services,IT,Supplies & Services,Communications & Computing,Communication Links,25/01/2018,232438,"3,326.42",Vodafone Cable & Wireless Uk
Environmental & Regulatory,Regulatory Services,Housing and Environmental Health ,Supplies & Services,Grants and subscriptions,Capital Grants,11/01/2018,232104,"4,031.76",Nhp (Romsey) Ltd
Central Services to the Public,Management & Support Services,Environmental,Transport Related Expenditure,Direct Transport Costs,Diesel,04/01/2018,230731,"3,389.05",Wp Group Limited
Environmental & Regulatory,Regulatory Services,Housing and Environmental Health ,Supplies & Services,Grants and subscriptions,Capital Grants,18/01/2018,232613,"4,135.57",Northfield Property Solutions Limited
Cultural & Related,Culture & Heritage,Community and Leisure ,Supplies & Services,Miscellaneous Expenses,Booking Of Acts,18/01/2018,232556,"3,635.00",Oddsocks Communications Ltd
Central Services to the Public,Management & Support Services,Finance,Supplies & Services,Services,Project Consultancy - Policy,18/01/2018,232020,"3,687.50",Capita Treasury Solutions Ltd
Environmental & Regulatory,Regulatory Services,Estates and Economic Development ,Third Party Payments,Other Establishments,Private Contractors,04/01/2018,231253,"3,723.93",Wetton Cleaning Services Ltd
Environmental & Regulatory,Regulatory Services,Estates and Economic Development ,Third Party Payments,Other Establishments,Private Contractors,18/01/2018,232353,"3,723.93",Wetton Cleaning Services Ltd
Environmental & Regulatory,Regulatory Services,Housing and Environmental Health ,Supplies & Services,Grants and subscriptions,Capital Grants,18/01/2018,232711,"4,559.15",Nhp (Romsey) Ltd
Environmental & Regulatory,Regulatory Services,Housing and Environmental Health ,Supplies & Services,Grants and subscriptions,Capital Grants,18/01/2018,232710,"4,575.00",Pm Design
External Trading Accounts,Business Parks,Estates and Economic Development ,Premises related Expenditure,Repairs Alterations & Maintenance of Buildings,Estates premises costs - AMP,25/01/2018,233190,"3,920.00",Paul Ashton Ltd
Cultural & Related,Open Spaces,Community and Leisure ,Premises related Expenditure,Grounds Maintenance Costs,Non Contract Tree Works,18/01/2018,232441,"3,943.22",Personal data - Data Protection Act 1998
Central Services to the Public,Management & Support Services,Environmental,Transport Related Expenditure,Direct Transport Costs,Diesel,25/01/2018,232011,"3,960.80",Wp Group Limited
Central Services to the Public,Management & Support Services,Environmental,Transport Related Expenditure,Direct Transport Costs,Diesel,25/01/2018,232672,"3,964.00",Wp Group Limited
Cultural & Related,Recreation & Sport,Community and Leisure ,Supplies & Services,"Equipment, Furniture & Materials",Purchase Equip + Materials,04/01/2018,225947,"3,969.00",Streetmaster (South Wales) Ltd
Cultural & Related,Culture & Heritage,Estates and Economic Development ,Premises related Expenditure,Repairs Alterations & Maintenance of Buildings,Estates premises costs - AMP,25/01/2018,232947,"4,090.00",Paul Ashton Ltd
Central Services to the Public,Management & Support Services,Estates and Economic Development ,Premises related Expenditure,Repairs Alterations & Maintenance of Buildings,Planned Maintenance - Non Est,18/01/2018,230853,"4,099.50",Pattco
Central Services to the Public,Management & Support Services,Estates and Economic Development ,Supplies & Services,Services,Professional Fees,18/01/2018,232386,"4,100.00",Rhb Partnership Llp
Central Services,Corporate & Democratic Core,Corporate & Democratic,Supplies & Services,"Equipment, Furniture & Materials",Purchase Equip + Materials,25/01/2018,232996,"4,153.81",Irvine Grenson Ltd
Central Services to the Public,Management & Support Services,Plan Pol & Transport,Premises related Expenditure,Repairs Alterations & Maintenance of Buildings,General Repairs,18/01/2018,232572,"4,160.91",Lockhams Construction Ltd
Central Services to the Public,Management & Support Services,IT,Supplies & Services,Communications & Computing,Software Maintenance,04/01/2018,231311,"4,272.85",Fordway Solutions Ltd
Environmental & Regulatory,Regulatory Services,Housing and Environmental Health ,Supplies & Services,Grants and subscriptions,Capital Grants,11/01/2018,232105,"5,190.00",Pcr Construction
Central Services to the Public,Management & Support Services,Estates and Economic Development ,Third Party Payments,Other Establishments,Private Contractors,25/01/2018,232964,"4,336.00",Doorgear Limited
Central Services to the Public,Management & Support Services,Environmental,Transport Related Expenditure,Direct Transport Costs,Diesel,04/01/2018,230730,"4,357.35",Wp Group Limited
Central Services to the Public,Management & Support Services,Environmental,Transport Related Expenditure,Direct Transport Costs,Diesel,25/01/2018,230502,"4,402.67",Hall Fuels
Cultural & Related,Open Spaces,Community and Leisure ,Premises related Expenditure,Repairs Alterations & Maintenance of Buildings,Estates premises costs - AMP,04/01/2018,231332,"4,755.00",Hrg Tree Services Ltd
"Highways, Roads & Transport",Parking Services,Plan Pol & Transport,Supplies & Services,Services,Professional Fees,11/01/2018,231856,"4,805.05",Keyline Chartered Security Ltd
Central Services to the Public,Management & Support Services,Environmental,Transport Related Expenditure,Direct Transport Costs,Diesel,04/01/2018,231266,"4,841.50",Wp Group Limited
Central Services to the Public,Management & Support Services,Environmental,Transport Related Expenditure,Direct Transport Costs,Diesel,25/01/2018,233040,"4,968.00",Wp Group Limited
Central Services to the Public,Management & Support Services,Finance,Supplies & Services,"Printing, Stationery & General Office Expenses",Postage Costs,18/01/2018,231861,"6,000.00",Pitney Bowes Limited
Cultural & Related,Culture & Heritage,Community and Leisure ,Supplies & Services,Miscellaneous Expenses,Booking Of Acts,04/01/2018,231271,"5,338.75",Vienna Festival Ballet
Planning & Development,Planning Policy,Plan Pol & Transport,Supplies & Services,Services,Project Consultancy - Policy,18/01/2018,230747,"5,458.44",Personal data - Data Protection Act 1998
Environmental & Regulatory,Regulatory Services,Estates and Economic Development ,Premises related Expenditure,Cleaning and domestic supplies,Contract Cleaning - Non Estates,18/01/2018,232442,"6,748.58",Friends Life Ltd
Central Services to the Public,Management & Support Services,Plan Pol & Transport,Supplies & Services,"Equipment, Furniture & Materials",Purchase Equip + Materials,18/01/2018,230404,"5,700.00",Coupe Line
Central Services to the Public,Management & Support Services,Estates and Economic Development ,Third Party Payments,Private contractors,Main Contractor Costs,04/01/2018,231314,"6,000.00",Real Estate Strategies Ltd
Central Services,Corporate & Democratic Core,Corporate & Democratic,Supplies & Services,Communications & Computing,Computer Software,18/01/2018,232564,"6,078.15",Caci Ltd
Central Services to the Public,Management & Support Services,IT,Supplies & Services,Communications & Computing,Software Maintenance,25/01/2018,232990,"6,389.82",Phoenix Software Ltd
Central Services to the Public,Management & Support Services,IT,Support Services,IT,IT Hardware costs,04/01/2018,231330,"6,399.97",Xerox (Uk) Ltd
Housing Services,Homelessness,Housing and Environmental Health ,Supplies & Services,Communications & Computing,Computer Software,25/01/2018,232693,"6,632.08",Civica Uk Ltd
External Trading Accounts,Business Parks,Estates and Economic Development ,Supplies & Services,Services,Legal Fees,04/01/2018,231527,"6,926.92",Dentons Ukmea Llp
External Trading Accounts,Business Parks,Estates and Economic Development ,Supplies & Services,Services,Legal Fees,04/01/2018,231527,"6,926.92",Dentons Ukmea Llp
Central Services to the Public,Management & Support Services,Estates and Economic Development ,Supplies & Services,Services,Professional Fees,04/01/2018,231315,"7,200.00",Watts Group Ltd
Cultural & Related,Recreation & Sport,Community and Leisure ,Premises related Expenditure,Repairs Alterations & Maintenance of Buildings,Estates premises costs - AMP,25/01/2018,232945,"7,636.60",New Forest Fencing Ltd
Cultural & Related,Recreation & Sport,Community and Leisure ,Supplies & Services,"Equipment, Furniture & Materials",Equipment Hire,25/01/2018,233296,"7,950.00",Total Swimming Ltd
Cultural & Related,Culture & Heritage,Community and Leisure ,Premises related Expenditure,Repairs Alterations & Maintenance of Buildings,Building Maint - Non Estates,25/01/2018,232949,"9,040.66",Btu Installation & Maintenance Ltd
External Trading Accounts,Property Investments,Estates and Economic Development ,Supplies & Services,Services,Professional Fees,18/01/2018,232377,"9,500.00",Personal data - Data Protection Act 1998
Central Services to the Public,Management & Support Services,Estates and Economic Development ,Third Party Payments,Other Establishments,Private Contractors,31/01/2018,233770,"9,507.00",Smart Securtiy Systems Ltd
Cultural & Related,Recreation & Sport,Community and Leisure ,Premises related Expenditure,Repairs Alterations & Maintenance of Buildings,Estates premises costs - AMP,18/01/2018,232017,"9,750.00",Bkp Waste & Recycling Ltd
Planning & Development,Development Control,Planning & Building,Supplies & Services,Services,Project Consultancy - Policy,25/01/2018,232435,"10,101.60",Hampshire County Council
Cultural & Related,Open Spaces,Community and Leisure ,Third Party Payments,Private contractors,Main Contractor Costs,11/01/2018,231476,"11,995.00",Purbeck Civil Engineering Limited
Central Services to the Public,Management & Support Services,Estates and Economic Development ,Supplies & Services,"Equipment, Furniture & Materials",Purchase Furniture,25/01/2018,232966,"14,009.77",Spectrum Workplace Llp
"Highways, Roads & Transport",Parking Services,Plan Pol & Transport,Supplies & Services,Services,Professional Fees,18/01/2018,232442,"17,353.50",Friends Life Ltd
Planning & Development,Building Control,Planning & Building,Third Party Payments,Commuted Sum,s106 Developer contributions,04/01/2018,231589,"17,847.47",Ampfield Parish Council
Cultural & Related,Recreation & Sport,Community and Leisure ,Supplies & Services,Grants and subscriptions,Capital Grants,10/01/2018,232028,"20,500.00",Andover Lawn Tennis Club C/O J Lee
Cultural & Related,Recreation & Sport,Community and Leisure ,Third Party Payments,Private contractors,Main Contractor Costs,04/01/2018,231324,"18,409.15",Hampshire County Council
Planning & Development,Building Control,Planning & Building,Third Party Payments,Commuted Sum,s106 Developer contributions,18/01/2018,232589,"22,639.53",Hampshire County Council
Planning & Development,Development Control,Planning & Building,Supplies & Services,Services,Project Consultancy - Policy,11/01/2018,232006,"20,232.23",Hampshire County Council
Central Services to the Public,Management & Support Services,Plan Pol & Transport,Premises related Expenditure,Repairs Alterations & Maintenance of Buildings,General Repairs,11/01/2018,232023,"22,168.91",Lockhams Construction Ltd
Housing Services,Homelessness,Housing and Environmental Health ,Supplies & Services,Grants & Subscriptions,Grants,18/01/2018,232431,"27,000.00",Aster Communities
Central Services to the Public,Management & Support Services,HR Services,Third Party Payments,Other Local Authorities,Shared Service Contract Costs,25/01/2018,229700,"24,229.40",Hampshire County Council
Central Services to the Public,Management & Support Services,IT,Supplies & Services,Communications & Computing,Computer Software,11/01/2018,231319,"24,275.10",Phoenix Software Ltd
Central Services to the Public,Management & Support Services,Estates and Economic Development ,Third Party Payments,Private contractors,Main Contractor Costs,18/01/2018,232595,"28,462.78",Ptc Construction Ltd
Central Services to the Public,Management & Support Services,Finance,Employees,Direct Employee Expenses,Shared service staffing costs,18/01/2018,232559,"28,960.00",Gosport Borough Council
Planning & Development,Community Development,Community and Leisure ,Supplies & Services,Grants & Subscriptions,Grants,18/01/2018,232588,"55,372.63",Test Valley Cab
Central Services to the Public,Management & Support Services,IT,Supplies & Services,Communications & Computing,Software Maintenance,25/01/2018,232990,"49,573.38",Phoenix Software Ltd
Central Services to the Public,Management & Support Services,Estates and Economic Development ,Third Party Payments,Private contractors,Main Contractor Costs,18/01/2018,232373,"80,000.00",Russell Play
Central Services to the Public,Management & Support Services,Environmental,Transport Related Expenditure,Direct Transport Costs,Vehicles and Plant,18/01/2018,232081,"126,525.00",Scarab Sweepers Ltd
